[Event "Pobeskydi 2026"]
[Site "Frydek-Mistek, Czech Republic"]
[Date "2026.04.02"]
[Round "1.1"]
[White "Gnojek, Petr"]
[Black "Haasova, Timea"]
[Result "1/2-1/2"]
[TimeControl "90 min+30s/move"]
[WhiteTitle "-"]
[BlackTitle "-"]
[WhiteFideId "371807"]
[BlackFideId "14960109"]
[WhiteElo "2401"]
[BlackElo "2012"]

1. d4 {[%clk 01:30:56]} {[%emt 00:00:03]} d5 {[%clk 01:30:50]} {[%emt
00:00:10]} 2. c4 {[%clk 01:31:18]} {[%emt 00:00:09]} c6 {[%clk 01:30:23]}
{[%emt 00:00:57]} 3. Nf3 {[%clk 01:31:35]} {[%emt 00:00:12]} Nf6 {[%clk
01:30:41]} {[%emt 00:00:11]} 4. Nc3 {[%clk 01:31:55]} {[%emt 00:00:10]} dxc4
{[%clk 01:30:41]} {[%emt 00:00:31]} 5. a4 {[%clk 01:32:08]} {[%emt 00:00:17]}
Bf5 {[%clk 01:30:03]} {[%emt 00:01:07]} 6. e3 {[%clk 01:31:31]} {[%emt
00:01:07]} e6 {[%clk 01:16:29]} {[%emt 00:14:04]} 7. Bxc4 {[%clk 01:31:29]}
{[%emt 00:00:32]} Nbd7 {[%clk 01:13:43]} {[%emt 00:03:16]} 8. O-O {[%clk
01:31:17]} {[%emt 00:00:42]} Be7 {[%clk 01:10:52]} {[%emt 00:03:21]} 9. Qe2
{[%clk 01:28:50]} {[%emt 00:02:57]} O-O {[%clk 00:58:10]} {[%emt 00:13:12]} 10.
e4 {[%clk 01:20:46]} {[%emt 00:08:34]} Bg6 {[%clk 00:55:57]} {[%emt 00:02:43]}
11. a5 {[%clk 01:16:37]} {[%emt 00:04:39]} b5 {[%clk 00:41:26]} {[%emt
00:15:01]} 12. axb6 {[%clk 01:13:56]} {[%emt 00:03:12]} axb6 {[%clk 00:39:05]}
{[%emt 00:02:51]} 13. Bg5 {[%clk 01:12:10]} {[%emt 00:02:16]} h6 {[%clk
00:31:14]} {[%emt 00:08:20]} 14. Bh4 {[%clk 01:11:24]} {[%emt 00:01:16]} Rxa1
{[%clk 00:29:27]} {[%emt 00:02:17]} 15. Rxa1 {[%clk 01:11:49]} {[%emt
00:00:04]} Nxe4 {[%clk 00:28:50]} {[%emt 00:01:08]} 16. Bxe6 {[%clk 01:06:44]}
{[%emt 00:05:35]} Nxc3 {[%clk 00:22:04]} {[%emt 00:07:16]} 17. bxc3 {[%clk
01:07:00]} {[%emt 00:00:14]} Bxh4 {[%clk 00:21:12]} {[%emt 00:01:22]} 18. Nxh4
{[%clk 01:01:28]} {[%emt 00:06:01]} Re8 {[%clk 00:20:07]} {[%emt 00:01:35]} 19.
Nxg6 {[%clk 01:01:53]} {[%emt 00:00:05]} Rxe6 {[%clk 00:20:06]} {[%emt
00:00:31]} 20. Ne5 {[%clk 01:02:15]} {[%emt 00:00:08]} Nxe5 {[%clk 00:12:48]}
{[%emt 00:07:49]} 21. dxe5 {[%clk 01:02:37]} {[%emt 00:00:07]} Qg5 {[%clk
00:12:17]} {[%emt 00:01:01]} 22. Qe4 {[%clk 00:58:58]} {[%emt 00:04:09]} g6
{[%clk 00:09:15]} {[%emt 00:03:32]} 23. Ra8+ {[%clk 00:55:08]} {[%emt
00:04:20]} Kg7 {[%clk 00:08:26]} {[%emt 00:01:20]} 24. f4 {[%clk 00:55:23]}
{[%emt 00:00:15]} Qg4 {[%clk 00:06:55]} {[%emt 00:02:01]} 25. Qd4 {[%clk
00:55:02]} {[%emt 00:00:50]} Qe2 {[%clk 00:06:18]} {[%emt 00:01:07]} 26. Ra1
{[%clk 00:35:21]} {[%emt 00:20:11]} c5 {[%clk 00:04:21]} {[%emt 00:02:27]} 27.
Qf2 {[%clk 00:35:44]} {[%emt 00:00:07]} Qxf2+ {[%clk 00:02:58]} {[%emt
00:01:54]} 28. Kxf2 {[%clk 00:36:09]} {[%emt 00:00:04]} b5 {[%clk 00:03:17]}
{[%emt 00:00:12]} 29. Rb1 {[%clk 00:36:22]} {[%emt 00:00:17]} Rb6 {[%clk
00:03:39]} {[%emt 00:00:08]} 30. Ke3 {[%clk 00:36:44]} {[%emt 00:00:08]} b4
{[%clk 00:01:04]} {[%emt 00:03:05]} 31. Kd3 {[%clk 00:36:26]} {[%emt 00:00:47]}
Rb8 {[%clk 00:00:38]} {[%emt 00:00:57]} 32. g3 {[%clk 00:33:02]} {[%emt
00:03:53]} Kf8 {[%clk 00:00:57]} {[%emt 00:00:11]} 33. Kc4 {[%clk 00:33:08]}
{[%emt 00:00:25]} Rc8 {[%clk 00:01:08]} {[%emt 00:00:19]} 34. Rb2 {[%clk
00:30:08]} {[%emt 00:03:29]} bxc3 {[%clk 00:00:45]} {[%emt 00:00:53]} 35. Kxc3
{[%clk 00:30:34]} {[%emt 00:00:04]} Ke7 {[%clk 00:00:55]} {[%emt 00:00:20]} 36.
Kc4 {[%clk 00:30:57]} {[%emt 00:00:08]} Ke6 {[%clk 00:00:51]} {[%emt 00:00:34]}
37. g4 {[%clk 00:25:19]} {[%emt 00:06:08]} Rc6 {[%clk 00:00:35]} {[%emt
00:00:46]} 38. Rb8 {[%clk 00:24:20]} {[%emt 00:01:29]} h5 {[%clk 00:00:34]}
{[%emt 00:00:31]} 39. gxh5 {[%clk 00:22:06]} {[%emt 00:02:43]} gxh5 {[%clk
00:01:00]} {[%emt 00:00:03]} 40. Rb7 {[%clk 00:22:22]} {[%emt 00:00:14]} f6
{[%clk 00:00:59]} {[%emt 00:00:31]} 41. Kb5 {[%clk 00:11:21]} {[%emt 00:11:32]}
Rc8 {[%clk 00:01:23]} {[%emt 00:00:06]} 42. Rb6+ {[%clk 00:11:48]} {[%emt
00:00:03]} Kd5 {[%clk 00:00:36]} {[%emt 00:01:17]} 43. Rd6 {[%clk 00:06:17]}
{[%emt 00:06:01]} Ke4 {[%clk 00:01:02]} {[%emt 00:00:05]} 44. e6 {[%clk
00:06:02]} {[%emt 00:00:45]} Kxf4 {[%clk 00:01:00]} {[%emt 00:00:31]} 45. e7
{[%clk 00:06:27]} {[%emt 00:00:05]} Re8 {[%clk 00:00:47]} {[%emt 00:00:43]} 46.
Re6 {[%clk 00:06:53]} {[%emt 00:00:04]} Kf5 {[%clk 00:00:56]} {[%emt 00:00:21]}
47. Re2 {[%clk 00:06:57]} {[%emt 00:00:26]} Kg6 {[%clk 00:00:34]} {[%emt
00:00:52]} 48. Kxc5 {[%clk 00:07:23]} {[%emt 00:00:05]} Kf7 {[%clk 00:00:36]}
{[%emt 00:00:28]} 49. Kd6 {[%clk 00:07:49]} {[%emt 00:00:03]} Ra8 {[%clk
00:00:42]} {[%emt 00:00:25]} 50. h4 {[%clk 00:07:34]} {[%emt 00:00:45]} Ra6+
{[%clk 00:00:45]} {[%emt 00:00:27]} 51. Kd5 {[%clk 00:07:14]} {[%emt 00:00:50]}
Ra5+ {[%clk 00:00:48]} {[%emt 00:00:28]} 52. Kc6 {[%clk 00:07:40]} {[%emt
00:00:03]} Ra8 {[%clk 00:01:08]} {[%emt 00:00:10]} 53. Re1 {[%clk 00:07:59]}
{[%emt 00:00:10]} f5 {[%clk 00:01:18]} {[%emt 00:00:21]} 54. Kd7 {[%clk
00:05:54]} {[%emt 00:02:35]} Ra7+ {[%clk 00:01:30]} {[%emt 00:00:18]} 55. Kd6
{[%clk 00:06:21]} {[%emt 00:00:03]} Ra6+ {[%clk 00:01:37]} {[%emt 00:00:23]} 56.
Kd5 {[%clk 00:06:37]} {[%emt 00:00:13]} Ra5+ {[%clk 00:01:24]} {[%emt
00:00:44]} 57. Kc6 {[%clk 00:06:51]} {[%emt 00:00:16]} Ra8 {[%clk 00:01:30]}
{[%emt 00:00:24]} 1/2-1/2

[Event "Pobeskydi 2026"]
[Site "Frydek-Mistek, Czech Republic"]
[Date "2026.04.02"]
[Round "1.2"]
[White "Ocelak, David"]
[Black "Walek, Petr"]
[Result "0-1"]
[TimeControl "90 min+30s/move"]
[WhiteTitle "-"]
[BlackTitle "-"]
[WhiteFideId "23728795"]
[BlackFideId "339393"]
[WhiteElo "2009"]
[BlackElo "2304"]

1. e4 {[%clk 01:30:52]} {[%emt 00:00:07]} c5 {[%clk 01:30:56]} {[%emt
00:00:05]} 2. Nf3 {[%clk 01:31:15]} {[%emt 00:00:06]} d6 {[%clk 01:31:21]}
{[%emt 00:00:05]} 3. g3 {[%clk 01:31:13]} {[%emt 00:00:33]} Nf6 {[%clk
01:29:56]} {[%emt 00:01:55]} 4. d3 {[%clk 01:31:31]} {[%emt 00:00:12]} Nc6
{[%clk 01:28:10]} {[%emt 00:02:16]} 5. Bg2 {[%clk 01:31:18]} {[%emt 00:00:41]}
e5 {[%clk 01:25:25]} {[%emt 00:03:16]} 6. Nc3 {[%clk 01:30:51]} {[%emt
00:00:58]} h6 {[%clk 01:21:41]} {[%emt 00:04:14]} 7. h3 {[%clk 01:28:01]}
{[%emt 00:03:19]} Be6 {[%clk 01:19:39]} {[%emt 00:02:32]} 8. O-O {[%clk
01:27:18]} {[%emt 00:01:14]} Be7 {[%clk 01:13:47]} {[%emt 00:06:22]} 9. Be3
{[%clk 01:20:40]} {[%emt 00:07:07]} Qd7 {[%clk 01:06:38]} {[%emt 00:07:40]} 10.
Kh2 {[%clk 01:18:17]} {[%emt 00:02:52]} d5 {[%clk 01:02:48]} {[%emt 00:04:21]}
11. exd5 {[%clk 01:10:58]} {[%emt 00:07:49]} Nxd5 {[%clk 01:03:12]} {[%emt
00:00:06]} 12. Nxd5 {[%clk 01:08:48]} {[%emt 00:02:40]} Bxd5 {[%clk 01:03:14]}
{[%emt 00:00:28]} 13. Re1 {[%clk 01:08:06]} {[%emt 00:01:12]} O-O {[%clk
00:58:31]} {[%emt 00:05:12]} 14. Bd2 {[%clk 01:01:42]} {[%emt 00:06:55]} Bd6
{[%clk 00:56:25]} {[%emt 00:02:37]} 15. Nh4 {[%clk 00:57:31]} {[%emt 00:04:40]}
Bxg2 {[%clk 00:49:38]} {[%emt 00:07:18]} 16. Kxg2 {[%clk 00:57:06]} {[%emt
00:00:54]} f5 {[%clk 00:48:44]} {[%emt 00:01:24]} 17. c3 {[%clk 00:33:02]}
{[%emt 00:24:34]} Bc7 {[%clk 00:41:39]} {[%emt 00:07:34]} 18. Be3 {[%clk
00:31:16]} {[%emt 00:02:17]} b6 {[%clk 00:33:54]} {[%emt 00:08:15]} 19. Qa4
{[%clk 00:27:20]} {[%emt 00:04:26]} f4 {[%clk 00:20:37]} {[%emt 00:13:47]} 20.
Qc4+ {[%clk 00:07:11]} {[%emt 00:20:39]} Qf7 {[%clk 00:18:28]} {[%emt
00:02:40]} 21. Qxf7+ {[%clk 00:05:04]} {[%emt 00:02:36]} Rxf7 {[%clk 00:18:40]}
{[%emt 00:00:19]} 22. Bd2 {[%clk 00:01:25]} {[%emt 00:04:09]} Rd8 {[%clk
00:10:49]} {[%emt 00:08:21]} 23. gxf4 {[%clk 00:00:35]} {[%emt 00:01:19]} Rxd3
{[%clk 00:07:59]} {[%emt 00:03:21]} 24. Rad1 {[%clk 00:00:39]} {[%emt
00:00:26]} exf4 {[%clk 00:05:24]} {[%emt 00:03:05]} 25. Nf3 {[%clk 00:01:02]}
{[%emt 00:00:07]} Rf6 {[%clk 00:05:10]} {[%emt 00:00:45]} 26. Re8+ {[%clk
00:00:42]} {[%emt 00:00:49]} Kh7 {[%clk 00:04:58]} {[%emt 00:00:42]} 27. Rc8
{[%clk 00:00:45]} {[%emt 00:00:28]} Bb8 {[%clk 00:02:40]} {[%emt 00:02:48]} 28.
Ne1 {[%clk 00:00:41]} {[%emt 00:00:33]} f3+ {[%clk 00:01:32]} {[%emt 00:01:40]}
29. Kf1 {[%clk 00:00:45]} {[%emt 00:00:25]} Rd5 {[%clk 00:00:50]} {[%emt
00:01:12]} 0-1

[Event "Pobeskydi 2026"]
[Site "Frydek-Mistek, Czech Republic"]
[Date "2026.04.02"]
[Round "1.3"]
[White "Karas, Marek"]
[Black "Gresek, Oskar"]
[Result "1-0"]
[TimeControl "90 min+30s/move"]
[WhiteTitle "-"]
[BlackTitle "-"]
[WhiteFideId "14928558"]
[BlackFideId "23750189"]
[WhiteElo "2232"]
[BlackElo "1995"]

1. d4 {[%clk 01:30:57]} {[%emt 00:00:02]} d5 {[%clk 01:30:44]} {[%emt
00:00:16]} 2. Nf3 {[%clk 01:31:17]} {[%emt 00:00:10]} Nf6 {[%clk 01:30:51]}
{[%emt 00:00:23]} 3. c4 {[%clk 01:31:39]} {[%emt 00:00:09]} e6 {[%clk
01:30:39]} {[%emt 00:00:42]} 4. g3 {[%clk 01:32:00]} {[%emt 00:00:09]} c6
{[%clk 01:29:35]} {[%emt 00:01:33]} 5. Bg2 {[%clk 01:32:22]} {[%emt 00:00:07]}
Be7 {[%clk 01:26:50]} {[%emt 00:03:15]} 6. O-O {[%clk 01:32:36]} {[%emt
00:00:16]} O-O {[%clk 01:27:12]} {[%emt 00:00:09]} 7. Nc3 {[%clk 01:32:52]}
{[%emt 00:00:15]} Nbd7 {[%clk 01:26:45]} {[%emt 00:00:57]} 8. Qd3 {[%clk
01:33:06]} {[%emt 00:00:15]} Re8 {[%clk 01:23:32]} {[%emt 00:03:43]} 9. Rd1
{[%clk 01:30:50]} {[%emt 00:02:45]} Qc7 {[%clk 01:22:06]} {[%emt 00:01:56]} 10.
e4 {[%clk 01:25:45]} {[%emt 00:05:36]} dxe4 {[%clk 01:18:38]} {[%emt 00:03:58]}
11. Nxe4 {[%clk 01:25:49]} {[%emt 00:00:27]} Nxe4 {[%clk 01:15:20]} {[%emt
00:03:47]} 12. Qxe4 {[%clk 01:24:42]} {[%emt 00:01:38]} Rd8 {[%clk 01:11:39]}
{[%emt 00:04:09]} 13. Bf4 {[%clk 01:22:46]} {[%emt 00:02:27]} Bd6 {[%clk
01:08:30]} {[%emt 00:03:40]} 14. Bxd6 {[%clk 01:21:55]} {[%emt 00:01:21]} Qxd6
{[%clk 01:08:41]} {[%emt 00:00:19]} 15. c5 {[%clk 01:21:17]} {[%emt 00:01:08]}
Qe7 {[%clk 01:05:11]} {[%emt 00:04:00]} 16. Qe2 {[%clk 01:19:48]} {[%emt
00:01:57]} Nf6 {[%clk 01:02:48]} {[%emt 00:02:54]} 17. Ne5 {[%clk 01:17:18]}
{[%emt 00:02:59]} Bd7 {[%clk 01:01:49]} {[%emt 00:01:30]} 18. Rd2 {[%clk
01:13:14]} {[%emt 00:04:31]} Be8 {[%clk 00:57:52]} {[%emt 00:04:30]} 19. Re1
{[%clk 01:11:18]} {[%emt 00:02:25]} Rab8 {[%clk 00:50:24]} {[%emt 00:07:59]} 20.
a3 {[%clk 01:05:20]} {[%emt 00:06:29]} Nd5 {[%clk 00:45:00]} {[%emt 00:05:54]}
21. b4 {[%clk 01:02:31]} {[%emt 00:03:18]} Qc7 {[%clk 00:40:24]} {[%emt
00:05:05]} 22. Nc4 {[%clk 01:01:39]} {[%emt 00:01:23]} h6 {[%clk 00:35:45]}
{[%emt 00:05:10]} 23. h4 {[%clk 00:57:00]} {[%emt 00:05:08]} Ne7 {[%clk
00:29:25]} {[%emt 00:06:50]} 24. Be4 {[%clk 00:54:57]} {[%emt 00:02:32]} b5
{[%clk 00:23:08]} {[%emt 00:06:49]} 25. Nd6 {[%clk 00:51:57]} {[%emt 00:03:28]}
Nc8 {[%clk 00:22:09]} {[%emt 00:01:30]} 26. Nxc8 {[%clk 00:51:17]} {[%emt
00:01:11]} Rbxc8 {[%clk 00:19:14]} {[%emt 00:03:25]} 27. Bb1 {[%clk 00:51:28]}
{[%emt 00:00:18]} Qe7 {[%clk 00:18:20]} {[%emt 00:01:25]} 28. f4 {[%clk
00:49:00]} {[%emt 00:02:57]} Qf6 {[%clk 00:16:50]} {[%emt 00:02:00]} 29. Qe4
{[%clk 00:47:24]} {[%emt 00:02:05]} Rd5 {[%clk 00:14:21]} {[%emt 00:03:00]} 30.
Ba2 {[%clk 00:43:24]} {[%emt 00:04:30]} Rdd8 {[%clk 00:11:59]} {[%emt
00:02:53]} 31. Red1 {[%clk 00:42:18]} {[%emt 00:01:35]} h5 {[%clk 00:11:04]}
{[%emt 00:01:26]} 32. Qe5 {[%clk 00:42:10]} {[%emt 00:00:38]} Qxe5 {[%clk
00:09:18]} {[%emt 00:02:16]} 33. dxe5 {[%clk 00:42:15]} {[%emt 00:00:25]} Rxd2
{[%clk 00:09:41]} {[%emt 00:00:07]} 34. Rxd2 {[%clk 00:42:40]} {[%emt
00:00:05]} Kf8 {[%clk 00:09:13]} {[%emt 00:00:59]} 35. Bb3 {[%clk 00:41:39]}
{[%emt 00:01:29]} a5 {[%clk 00:05:31]} {[%emt 00:04:12]} 36. Rd1 {[%clk
00:39:51]} {[%emt 00:02:17]} Ke7 {[%clk 00:04:26]} {[%emt 00:01:37]} 37. Kf2
{[%clk 00:40:06]} {[%emt 00:00:14]} Rd8 {[%clk 00:03:07]} {[%emt 00:01:49]} 38.
Rxd8 {[%clk 00:33:45]} {[%emt 00:06:52]} Kxd8 {[%clk 00:03:32]} {[%emt
00:00:04]} 39. bxa5 {[%clk 00:34:07]} {[%emt 00:00:09]} Kc7 {[%clk 00:03:33]}
{[%emt 00:00:28]} 40. Bd1 {[%clk 00:34:27]} {[%emt 00:00:10]} g6 {[%clk
00:03:05]} {[%emt 00:00:59]} 41. g4 {[%clk 00:34:42]} {[%emt 00:00:15]} hxg4
{[%clk 00:03:26]} {[%emt 00:00:09]} 42. Kg3 {[%clk 00:34:56]} {[%emt 00:00:14]}
Bd7 {[%clk 00:02:02]} {[%emt 00:01:56]} 43. Kxg4 {[%clk 00:35:10]} {[%emt
00:00:16]} Kd8 {[%clk 00:01:05]} {[%emt 00:01:27]} 44. Bf3 {[%clk 00:34:46]}
{[%emt 00:00:51]} 1-0

[Event "Pobeskydi 2026"]
[Site "Frydek-Mistek, Czech Republic"]
[Date "2026.04.02"]
[Round "1.4"]
[White "Hlavacek, Pavel"]
[Black "Durana, Jonas"]
[Result "0-1"]
[TimeControl "90 min+30s/move"]
[WhiteTitle "-"]
[BlackTitle "-"]
[WhiteFideId "23761768"]
[BlackFideId "73619663"]
[WhiteElo "1982"]
[BlackElo "2183"]

1. d4 {[%clk 01:30:59]} {[%emt 00:00:01]} Nf6 {[%clk 01:30:46]} {[%emt
00:00:14]} 2. c4 {[%clk 01:31:23]} {[%emt 00:00:06]} e6 {[%clk 01:31:10]}
{[%emt 00:00:06]} 3. Nc3 {[%clk 01:31:45]} {[%emt 00:00:08]} Bb4 {[%clk
01:31:32]} {[%emt 00:00:08]} 4. Qc2 {[%clk 01:32:09]} {[%emt 00:00:07]} c5
{[%clk 01:29:47]} {[%emt 00:02:14]} 5. dxc5 {[%clk 01:31:58]} {[%emt 00:00:41]}
Bxc5 {[%clk 01:22:06]} {[%emt 00:08:10]} 6. Nf3 {[%clk 01:31:36]} {[%emt
00:00:53]} Nc6 {[%clk 01:18:16]} {[%emt 00:04:20]} 7. a3 {[%clk 01:29:12]}
{[%emt 00:02:54]} a6 {[%clk 01:09:51]} {[%emt 00:08:55]} 8. e3 {[%clk
01:25:10]} {[%emt 00:04:32]} d5 {[%clk 01:06:37]} {[%emt 00:03:44]} 9. b4
{[%clk 01:22:40]} {[%emt 00:03:00]} Ba7 {[%clk 01:05:49]} {[%emt 00:01:17]} 10.
Bb2 {[%clk 01:15:25]} {[%emt 00:07:46]} dxc4 {[%clk 00:49:29]} {[%emt
00:16:50]} 11. Bxc4 {[%clk 01:15:14]} {[%emt 00:00:41]} O-O {[%clk 00:37:52]}
{[%emt 00:12:06]} 12. O-O {[%clk 01:11:42]} {[%emt 00:04:03]} Qe7 {[%clk
00:28:43]} {[%emt 00:09:38]} 13. Rfd1 {[%clk 01:05:07]} {[%emt 00:07:06]} Bb8
{[%clk 00:25:20]} {[%emt 00:03:52]} 14. Rac1 {[%clk 00:56:03]} {[%emt
00:09:34]} Ne5 {[%clk 00:24:06]} {[%emt 00:01:45]} 15. Nxe5 {[%clk 00:53:29]}
{[%emt 00:03:04]} Bxe5 {[%clk 00:24:29]} {[%emt 00:00:06]} 16. Ne2 {[%clk
00:53:20]} {[%emt 00:00:40]} Bxb2 {[%clk 00:24:22]} {[%emt 00:00:37]} 17. Qxb2
{[%clk 00:53:44]} {[%emt 00:00:06]} b5 {[%clk 00:22:29]} {[%emt 00:02:22]} 18.
Bb3 {[%clk 00:50:48]} {[%emt 00:03:26]} Bb7 {[%clk 00:22:11]} {[%emt 00:00:48]}
19. Qd4 {[%clk 00:50:02]} {[%emt 00:01:16]} Rac8 {[%clk 00:20:10]} {[%emt
00:02:31]} 20. Qb6 {[%clk 00:46:42]} {[%emt 00:03:50]} Rxc1 {[%clk 00:11:45]}
{[%emt 00:08:55]} 21. Rxc1 {[%clk 00:45:57]} {[%emt 00:01:15]} Rc8 {[%clk
00:11:28]} {[%emt 00:00:46]} 22. Rxc8+ {[%clk 00:40:38]} {[%emt 00:05:49]} Bxc8
{[%clk 00:11:19]} {[%emt 00:00:40]} 23. Nd4 {[%clk 00:39:22]} {[%emt 00:01:46]}
Qd7 {[%clk 00:07:42]} {[%emt 00:04:07]} 24. h3 {[%clk 00:35:51]} {[%emt
00:04:02]} h6 {[%clk 00:06:33]} {[%emt 00:01:39]} 25. Nc6 {[%clk 00:26:41]}
{[%emt 00:09:39]} Bb7 {[%clk 00:05:41]} {[%emt 00:01:22]} 26. Ne5 {[%clk
00:26:15]} {[%emt 00:00:56]} Qc8 {[%clk 00:05:18]} {[%emt 00:00:53]} 27. Nd3
{[%clk 00:14:47]} {[%emt 00:11:57]} Nd7 {[%clk 00:02:11]} {[%emt 00:03:38]} 28.
Qd4 {[%clk 00:14:38]} {[%emt 00:00:39]} Qc6 {[%clk 00:02:31]} {[%emt 00:00:10]}
29. f3 {[%clk 00:14:20]} {[%emt 00:00:48]} Qc7 {[%clk 00:01:25]} {[%emt
00:01:35]} 30. Nc5 {[%clk 00:13:57]} {[%emt 00:00:53]} Nxc5 {[%clk 00:01:42]}
{[%emt 00:00:14]} 31. bxc5 {[%clk 00:13:59]} {[%emt 00:00:28]} Bc6 {[%clk
00:00:42]} {[%emt 00:01:29]} 32. Bc2 {[%clk 00:12:30]} {[%emt 00:01:59]} Kf8
{[%clk 00:00:42]} {[%emt 00:00:32]} 33. Qd6+ {[%clk 00:12:05]} {[%emt
00:00:54]} Qxd6 {[%clk 00:01:04]} {[%emt 00:00:07]} 34. cxd6 {[%clk 00:12:31]}
{[%emt 00:00:04]} Ke8 {[%clk 00:00:59]} {[%emt 00:00:36]} 35. e4 {[%clk
00:12:23]} {[%emt 00:00:38]} e5 {[%clk 00:01:25]} {[%emt 00:00:03]} 36. Bb3
{[%clk 00:10:21]} {[%emt 00:02:33]} Kd7 {[%clk 00:01:47]} {[%emt 00:00:08]} 37.
Bxf7 {[%clk 00:10:38]} {[%emt 00:00:13]} Kxd6 {[%clk 00:02:11]} {[%emt
00:00:06]} 38. Kf2 {[%clk 00:10:58]} {[%emt 00:00:10]} a5 {[%clk 00:01:52]}
{[%emt 00:00:49]} 39. Ke3 {[%clk 00:10:06]} {[%emt 00:01:21]} Kc5 {[%clk
00:02:07]} {[%emt 00:00:15]} 40. f4 {[%clk 00:09:00]} {[%emt 00:01:36]} exf4+
{[%clk 00:02:29]} {[%emt 00:00:08]} 41. Kxf4 {[%clk 00:09:24]} {[%emt
00:00:07]} b4 {[%clk 00:02:18]} {[%emt 00:00:41]} 42. axb4+ {[%clk 00:07:43]}
{[%emt 00:02:10]} Kxb4 {[%clk 00:01:34]} {[%emt 00:01:15]} 43. e5 {[%clk
00:05:25]} {[%emt 00:02:49]} Kc5 {[%clk 00:01:40]} {[%emt 00:00:23]} 44. g3
{[%clk 00:04:02]} {[%emt 00:01:53]} a4 {[%clk 00:02:03]} {[%emt 00:00:07]} 45.
Kf5 {[%clk 00:03:38]} {[%emt 00:00:54]} a3 {[%clk 00:01:54]} {[%emt 00:00:38]}
46. Ba2 {[%clk 00:03:54]} {[%emt 00:00:14]} Bd5 {[%clk 00:01:42]} {[%emt
00:00:42]} 47. Bb1 {[%clk 00:04:12]} {[%emt 00:00:13]} Bb3 {[%clk 00:01:16]}
{[%emt 00:00:56]} 48. e6 {[%clk 00:03:53]} {[%emt 00:00:50]} Kd6 {[%clk
00:01:39]} {[%emt 00:00:06]} 49. e7 {[%clk 00:02:35]} {[%emt 00:01:49]} Kxe7
{[%clk 00:02:00]} {[%emt 00:00:09]} 50. Kg6 {[%clk 00:01:33]} {[%emt 00:01:31]}
Bc2+ {[%clk 00:02:21]} {[%emt 00:00:08]} 0-1

[Event "Pobeskydi 2026"]
[Site "Frydek-Mistek, Czech Republic"]
[Date "2026.04.02"]
[Round "1.5"]
[White "Sarkozi, Szabolcs"]
[Black "Ciupka, Kamil"]
[Result "1-0"]
[TimeControl "90 min+30s/move"]
[WhiteTitle "-"]
[BlackTitle "-"]
[WhiteFideId "14941660"]
[BlackFideId "21000417"]
[WhiteElo "2117"]
[BlackElo "1981"]

1. e4 {[%clk 01:30:48]} {[%emt 00:00:11]} e6 {[%clk 01:30:32]} {[%emt
00:00:29]} 2. d4 {[%clk 01:31:11]} {[%emt 00:00:08]} d5 {[%clk 01:30:55]}
{[%emt 00:00:06]} 3. Nc3 {[%clk 01:31:26]} {[%emt 00:00:15]} dxe4 {[%clk
01:31:20]} {[%emt 00:00:06]} 4. Nxe4 {[%clk 01:31:49]} {[%emt 00:00:07]} Nd7
{[%clk 01:31:46]} {[%emt 00:00:04]} 5. Nf3 {[%clk 01:27:15]} {[%emt 00:05:04]}
Ngf6 {[%clk 01:31:35]} {[%emt 00:00:41]} 6. Nxf6+ {[%clk 01:27:37]} {[%emt
00:00:07]} Nxf6 {[%clk 01:31:56]} {[%emt 00:00:09]} 7. Be3 {[%clk 01:28:01]}
{[%emt 00:00:07]} Nd5 {[%clk 01:30:53]} {[%emt 00:01:33]} 8. Bd2 {[%clk
01:28:23]} {[%emt 00:00:08]} Be7 {[%clk 01:27:09]} {[%emt 00:04:13]} 9. c4
{[%clk 01:24:49]} {[%emt 00:04:05]} Nf6 {[%clk 01:27:18]} {[%emt 00:00:21]} 10.
Qc2 {[%clk 01:24:50]} {[%emt 00:00:29]} c5 {[%clk 01:23:30]} {[%emt 00:04:18]}
11. dxc5 {[%clk 01:17:26]} {[%emt 00:07:54]} Qc7 {[%clk 01:22:45]} {[%emt
00:01:15]} 12. Bc3 {[%clk 01:16:05]} {[%emt 00:01:50]} Bd7 {[%clk 01:17:45]}
{[%emt 00:05:31]} 13. Bd3 {[%clk 01:10:38]} {[%emt 00:05:56]} Bxc5 {[%clk
01:09:38]} {[%emt 00:08:38]} 14. b4 {[%clk 00:58:25]} {[%emt 00:12:43]} Bd6
{[%clk 01:08:23]} {[%emt 00:01:44]} 15. c5 {[%clk 00:50:04]} {[%emt 00:08:51]}
Rc8 {[%clk 01:03:27]} {[%emt 00:05:27]} 16. Qb2 {[%clk 00:47:17]} {[%emt
00:03:18]} Be7 {[%clk 00:44:56]} {[%emt 00:19:01]} 17. Be5 {[%clk 00:46:33]}
{[%emt 00:01:12]} Qc6 {[%clk 00:42:30]} {[%emt 00:02:56]} 18. O-O {[%clk
00:44:06]} {[%emt 00:02:57]} Rg8 {[%clk 00:32:26]} {[%emt 00:10:34]} 19. Rac1
{[%clk 00:41:12]} {[%emt 00:03:24]} a6 {[%clk 00:30:12]} {[%emt 00:02:45]} 20.
Rfd1 {[%clk 00:37:46]} {[%emt 00:03:56]} Rd8 {[%clk 00:26:37]} {[%emt
00:04:06]} 21. Nd2 {[%clk 00:18:32]} {[%emt 00:19:44]} Ng4 {[%clk 00:16:59]}
{[%emt 00:10:08]} 22. Be4 {[%clk 00:10:14]} {[%emt 00:08:48]} Qc8 {[%clk
00:17:17]} {[%emt 00:00:11]} 23. Bxg7 {[%clk 00:08:38]} {[%emt 00:02:06]} f6
{[%clk 00:16:45]} {[%emt 00:01:03]} 24. h3 {[%clk 00:05:17]} {[%emt 00:03:51]}
Rxg7 {[%clk 00:11:39]} {[%emt 00:05:35]} 25. hxg4 {[%clk 00:05:45]} {[%emt
00:00:03]} Rxg4 {[%clk 00:11:39]} {[%emt 00:00:30]} 26. Bf3 {[%clk 00:05:21]}
{[%emt 00:00:53]} Rf4 {[%clk 00:07:03]} {[%emt 00:05:06]} 27. Qc2 {[%clk
00:04:54]} {[%emt 00:00:58]} Rh4 {[%clk 00:05:37]} {[%emt 00:01:56]} 28. Nc4
{[%clk 00:03:48]} {[%emt 00:01:36]} Kf8 {[%clk 00:00:55]} {[%emt 00:05:12]} 29.
Nb6 {[%clk 00:03:12]} {[%emt 00:01:05]} Qc7 {[%clk 00:01:13]} {[%emt 00:00:13]}
30. g3 {[%clk 00:03:07]} {[%emt 00:00:35]} Rh6 {[%clk 00:00:32]} {[%emt
00:01:11]} 31. Qd2 {[%clk 00:03:17]} {[%emt 00:00:19]} Rg6 {[%clk 00:00:42]}
{[%emt 00:00:21]} 32. Nxd7+ {[%clk 00:03:12]} {[%emt 00:00:35]} Rxd7 {[%clk
00:01:08]} {[%emt 00:00:04]} 33. Qxd7 {[%clk 00:03:19]} {[%emt 00:00:22]} Rxg3+
{[%clk 00:01:10]} {[%emt 00:00:28]} 34. Bg2 {[%clk 00:01:05]} {[%emt 00:02:43]}
Rxg2+ {[%clk 00:00:50]} {[%emt 00:00:51]} 35. Kxg2 {[%clk 00:01:32]} {[%emt
00:00:03]} Qe5 {[%clk 00:01:17]} {[%emt 00:00:03]} 36. Qd3 {[%clk 00:01:27]}
{[%emt 00:00:35]} Qg5+ {[%clk 00:01:25]} {[%emt 00:00:23]} 37. Qg3 {[%clk
00:01:47]} {[%emt 00:00:09]} 1-0